[Event "Titled Tuesday Blitz May 16 Late 2023"]
[White "Rastbod, Ali"]
[Black "Avalos Parra, Joao"]
[WhiteFideId "12567477"]
[BlackFideId "3402541"]
[WhiteElo "2274"]
[BlackElo "2173"]
[Result "1-0"]
[Round "01"]
[TimeControl "180+2"]
[Date "2023.05.16"]
[WhiteClock "0:00:50"]
[BlackClock "0:00:03"]

1. d4 {[%clk 0:02:56]}  d5 {[%clk 0:02:59]} 2. Bf4 {[%clk 0:02:56]}  e6 {[%clk 0:02:59]} 3. e3 {[%clk 0:02:56]}  Bd6 {[%clk 0:02:59]} 4. Bg3 {[%clk 0:02:57]}  Nf6 {[%clk 0:02:58]} 5. Nd2 {[%clk 0:02:57]}  O-O {[%clk 0:02:58]} 6. Bd3 {[%clk 0:02:57]}  c5 {[%clk 0:02:58]} 7. c3 {[%clk 0:02:57]}  Qc7 {[%clk 0:02:59]} 8. Bxd6 {[%clk 0:02:57]}  Qxd6 {[%clk 0:02:59]} 9. f4 {[%clk 0:02:58]}  b6 {[%clk 0:02:57]} 10. Qe2 {[%clk 0:02:58]}  a5 {[%clk 0:02:57]} 11. Ngf3 {[%clk 0:02:58]}  Ba6 {[%clk 0:02:57]} 12. Bxa6 {[%clk 0:02:59]}  Nxa6 {[%clk 0:02:58]} 13. Ne5 {[%clk 0:03:00]}  Nb8 {[%clk 0:02:58]} 14. O-O-O {[%clk 0:03:00]}  Nbd7 {[%clk 0:02:54]} 15. Kb1 {[%clk 0:03:01]}  b5 {[%clk 0:02:55]} 16. Qxb5 {[%clk 0:02:55]}  Rfb8 {[%clk 0:02:55]} 17. Qc6 {[%clk 0:02:55]}  Qe7 {[%clk 0:02:48]} 18. Ndf3 {[%clk 0:02:48]}  Nxe5 {[%clk 0:02:41]} 19. Nxe5 {[%clk 0:02:47]}  Ne4 {[%clk 0:02:38]} 20. Qd7 {[%clk 0:02:41]}  Qf6 {[%clk 0:02:05]} 21. Rc1 {[%clk 0:02:33]}  c4 {[%clk 0:02:03]} 22. Qa4 {[%clk 0:02:20]}  Qe7 {[%clk 0:02:00]} 23. Ka1 {[%clk 0:02:18]}  Rb6 {[%clk 0:01:50]} 24. Qd7 {[%clk 0:02:13]}  Qf8 {[%clk 0:01:46]} 25. Rc2 {[%clk 0:02:05]}  f6 {[%clk 0:01:40]} 26. Nf3 {[%clk 0:01:58]}  Rab8 {[%clk 0:01:40]} 27. Nd2 {[%clk 0:01:49]}  Nf2 {[%clk 0:01:35]} 28. Rb1 {[%clk 0:01:48]}  Nd3 {[%clk 0:01:36]} 29. Qa4 {[%clk 0:01:45]}  Qd6 {[%clk 0:01:30]} 30. Nxc4 {[%clk 0:01:34]}  dxc4 {[%clk 0:01:29]} 31. Qxc4 {[%clk 0:01:35]}  Nxf4 {[%clk 0:00:56]} 32. exf4 {[%clk 0:01:36]}  Qxf4 {[%clk 0:00:56]} 33. g3 {[%clk 0:01:34]}  Qf5 {[%clk 0:00:53]} 34. Re2 {[%clk 0:01:26]}  h5 {[%clk 0:00:52]} 35. Rbe1 {[%clk 0:01:21]}  Kh7 {[%clk 0:00:50]} 36. Qa4 {[%clk 0:01:11]}  Qd3 {[%clk 0:00:24]} 37. Qc2 {[%clk 0:01:06]}  Qxc2 {[%clk 0:00:18]} 38. Rxc2 {[%clk 0:01:07]}  Kg6 {[%clk 0:00:18]} 39. Rce2 {[%clk 0:01:03]}  Kf5 {[%clk 0:00:15]} 40. b3 {[%clk 0:01:01]}  a4 {[%clk 0:00:15]} 41. b4 {[%clk 0:01:01]}  Rc6 {[%clk 0:00:15]} 42. Kb2 {[%clk 0:01:01]}  Rbc8 {[%clk 0:00:15]} 43. Re3 {[%clk 0:01:02]}  a3+ {[%clk 0:00:14]} 44. Kb3 {[%clk 0:01:03]}  g5 {[%clk 0:00:14]} 45. b5 {[%clk 0:01:03]}  Rc4 {[%clk 0:00:13]} 46. Rf1+ {[%clk 0:01:00]}  Kg6 {[%clk 0:00:13]} 47. h3 {[%clk 0:00:58]}  e5 {[%clk 0:00:08]} 48. dxe5 {[%clk 0:00:56]}  fxe5 {[%clk 0:00:09]} 49. Rc1 {[%clk 0:00:53]}  R8c5 {[%clk 0:00:08]} 50. Rxe5 {[%clk 0:00:51]}  Rxc3+ {[%clk 0:00:07]} 51. Rxc3 {[%clk 0:00:51]}  Rxe5 {[%clk 0:00:07]} 52. Ka4 {[%clk 0:00:51]}  Re2 {[%clk 0:00:03]} 53. Kxa3 {[%clk 0:00:51]}  g4 {[%clk 0:00:01]} 54. hxg4 {[%clk 0:00:51]}  hxg4 {[%clk 0:00:02]} 55. b6 {[%clk 0:00:51]}  Re6 {[%clk 0:00:02]} 56. Rb3 {[%clk 0:00:50]}  Re8 {[%clk 0:00:03]} 57. b7 {[%clk 0:00:50]}  Rb8 {[%clk 0:00:04]} 58. Kb2 {[%clk 0:00:51]}  Kf6 {[%clk 0:00:05]} 59. a4 {[%clk 0:00:51]}  Ke6 {[%clk 0:00:03]} 60. a5 {[%clk 0:00:50]} 1-0


[Site "https://www.chess.com"]

[Event "Titled Tuesday Blitz May 16 Late 2023"]
[White "ArchibaldCerveza29"]
[Black "Tsvetkov, Andrey"]
[BlackFideId "34139360"]
[WhiteElo "2382"]
[BlackElo "2296"]
[Result "0-1"]
[Round "01"]
[TimeControl "180+2"]
[Date "2023.05.16"]
[WhiteClock "0:00:00"]
[BlackClock "0:00:29"]

1. d4 {[%clk 0:02:55]}  d5 {[%clk 0:02:59]} 2. c4 {[%clk 0:02:55]}  e6 {[%clk 0:02:59]} 3. Nc3 {[%clk 0:02:55]}  Nf6 {[%clk 0:02:58]} 4. cxd5 {[%clk 0:02:55]}  exd5 {[%clk 0:02:59]} 5. Bg5 {[%clk 0:02:56]}  Bb4 {[%clk 0:02:59]} 6. Qc2 {[%clk 0:02:53]}  h6 {[%clk 0:02:58]} 7. Bh4 {[%clk 0:02:53]}  g5 {[%clk 0:02:57]} 8. Bg3 {[%clk 0:02:53]}  Ne4 {[%clk 0:02:57]} 9. e3 {[%clk 0:02:52]}  h5 {[%clk 0:02:56]} 10. f3 {[%clk 0:02:50]}  Nxg3 {[%clk 0:02:53]} 11. hxg3 {[%clk 0:02:51]}  c6 {[%clk 0:02:54]} 12. Bd3 {[%clk 0:02:48]}  Bd6 {[%clk 0:02:49]} 13. Nge2 {[%clk 0:02:48]}  Nd7 {[%clk 0:02:50]} 14. O-O-O {[%clk 0:02:48]}  Nf6 {[%clk 0:02:24]} 15. e4 {[%clk 0:02:42]}  dxe4 {[%clk 0:02:25]} 16. fxe4 {[%clk 0:02:43]}  Ng4 {[%clk 0:02:25]} 17. Rde1 {[%clk 0:02:29]}  Qe7 {[%clk 0:01:55]} 18. e5 {[%clk 0:02:24]}  Bb4 {[%clk 0:01:54]} 19. a3 {[%clk 0:02:02]}  Ba5 {[%clk 0:01:54]} 20. Kb1 {[%clk 0:01:51]}  Be6 {[%clk 0:01:53]} 21. Nc1 {[%clk 0:01:30]}  O-O-O {[%clk 0:01:45]} 22. d5 {[%clk 0:01:08]}  Bxd5 {[%clk 0:01:37]} 23. Nxd5 {[%clk 0:01:04]}  Rxd5 {[%clk 0:01:38]} 24. Bf5+ {[%clk 0:00:56]}  Kb8 {[%clk 0:01:38]} 25. Re2 {[%clk 0:00:39]}  Nxe5 {[%clk 0:01:21]} 26. Nd3 {[%clk 0:00:22]}  Qf6 {[%clk 0:00:42]} 27. Nxe5 {[%clk 0:00:17]}  Rxe5 {[%clk 0:00:43]} 28. Rxe5 {[%clk 0:00:16]}  Qxe5 {[%clk 0:00:44]} 29. g4 {[%clk 0:00:16]}  Rd8 {[%clk 0:00:42]} 30. Rxh5 {[%clk 0:00:13]}  Rd2 {[%clk 0:00:37]} 31. Qc1 {[%clk 0:00:14]}  Re2 {[%clk 0:00:32]} 32. Rxg5 {[%clk 0:00:13]}  Re1 {[%clk 0:00:30]} 33. Rg8+ {[%clk 0:00:12]}  Kc7 {[%clk 0:00:30]} 34. Rc8+ {[%clk 0:00:00]}  Kb6 {[%clk 0:00:29]} 0-1


[Site "https://www.chess.com"]

[Event "Titled Tuesday Blitz May 16 Late 2023"]
[White "Jaracz, Pawel"]
[Black "Abduzhaparov"]
[WhiteFideId "1102222"]
[WhiteElo "2438"]
[BlackElo "2379"]
[Result "1-0"]
[Round "01"]
[TimeControl "180+2"]
[Date "2023.05.16"]
[WhiteClock "0:01:01"]
[BlackClock "0:00:02"]

1. d4 {[%clk 0:02:20]}  d6 {[%clk 0:02:58]} 2. e4 {[%clk 0:02:19]}  Nf6 {[%clk 0:02:57]} 3. Bd3 {[%clk 0:02:17]}  e5 {[%clk 0:02:58]} 4. Nf3 {[%clk 0:02:16]}  c6 {[%clk 0:02:54]} 5. O-O {[%clk 0:02:15]}  Nbd7 {[%clk 0:02:53]} 6. c3 {[%clk 0:02:15]}  Be7 {[%clk 0:02:53]} 7. Nbd2 {[%clk 0:02:13]}  O-O {[%clk 0:02:52]} 8. Re1 {[%clk 0:02:13]}  Re8 {[%clk 0:02:52]} 9. Nf1 {[%clk 0:02:13]}  Bf8 {[%clk 0:02:51]} 10. Ng3 {[%clk 0:02:13]}  g6 {[%clk 0:02:51]} 11. h3 {[%clk 0:02:12]}  Bg7 {[%clk 0:02:47]} 12. Bg5 {[%clk 0:02:10]}  Qc7 {[%clk 0:02:46]} 13. Qd2 {[%clk 0:02:10]}  Rb8 {[%clk 0:02:25]} 14. Bh6 {[%clk 0:02:06]}  Bh8 {[%clk 0:01:46]} 15. Nh4 {[%clk 0:01:57]}  Nb6 {[%clk 0:01:38]} 16. f4 {[%clk 0:01:56]}  exd4 {[%clk 0:01:18]} 17. cxd4 {[%clk 0:01:55]}  d5 {[%clk 0:01:14]} 18. e5 {[%clk 0:01:55]}  Ne4 {[%clk 0:01:01]} 19. Nxe4 {[%clk 0:01:48]}  dxe4 {[%clk 0:01:02]} 20. Bxe4 {[%clk 0:01:48]}  Qd8 {[%clk 0:00:56]} 21. Qf2 {[%clk 0:01:47]}  f5 {[%clk 0:00:42]} 22. Bg5 {[%clk 0:01:36]}  Qd7 {[%clk 0:00:30]} 23. Bc2 {[%clk 0:01:34]}  Qf7 {[%clk 0:00:27]} 24. Nf3 {[%clk 0:01:28]}  Be6 {[%clk 0:00:27]} 25. Bh4 {[%clk 0:01:23]}  Bd5 {[%clk 0:00:23]} 26. Ng5 {[%clk 0:01:23]}  Qd7 {[%clk 0:00:20]} 27. Kh2 {[%clk 0:01:23]}  h6 {[%clk 0:00:18]} 28. Nf3 {[%clk 0:01:22]}  Bg7 {[%clk 0:00:18]} 29. Rg1 {[%clk 0:01:21]}  Be6 {[%clk 0:00:18]} 30. Rad1 {[%clk 0:01:19]}  Nd5 {[%clk 0:00:18]} 31. Ne1 {[%clk 0:01:16]}  Rbd8 {[%clk 0:00:17]} 32. Nd3 {[%clk 0:01:16]}  b6 {[%clk 0:00:17]} 33. Bb3 {[%clk 0:01:15]}  Qc7 {[%clk 0:00:16]} 34. Bxd8 {[%clk 0:01:14]}  Rxd8 {[%clk 0:00:16]} 35. Rc1 {[%clk 0:01:11]}  Qf7 {[%clk 0:00:15]} 36. Rxc6 {[%clk 0:01:10]}  Kh7 {[%clk 0:00:14]} 37. Rd6 {[%clk 0:01:07]}  Rxd6 {[%clk 0:00:13]} 38. exd6 {[%clk 0:01:07]}  Qd7 {[%clk 0:00:12]} 39. Ne5 {[%clk 0:01:04]}  Qxd6 {[%clk 0:00:12]} 40. Rc1 {[%clk 0:01:04]}  Bg8 {[%clk 0:00:12]} 41. Rc6 {[%clk 0:01:03]}  Bxe5 {[%clk 0:00:09]} 42. Rxd6 {[%clk 0:01:02]}  Bxf4+ {[%clk 0:00:08]} 43. Qxf4 {[%clk 0:01:00]}  Nxf4 {[%clk 0:00:07]} 44. Rd7+ {[%clk 0:01:00]}  Kh8 {[%clk 0:00:02]} 45. Rd8 {[%clk 0:01:01]} 1-0


[Site "https://www.chess.com"]

[Event "Titled Tuesday Blitz May 16 Late 2023"]
[White "QuiesPrecatio"]
[Black "Mihajlov, Sebastian"]
[BlackFideId "1512110"]
[WhiteElo "2372"]
[BlackElo "2478"]
[Result "1-0"]
[Round "01"]
[TimeControl "180+2"]
[Date "2023.05.16"]
[WhiteClock "0:00:07"]
[BlackClock "0:00:01"]

1. d4 {[%clk 0:02:58]}  Nf6 {[%clk 0:02:55]} 2. c4 {[%clk 0:02:58]}  g6 {[%clk 0:02:56]} 3. Nf3 {[%clk 0:02:58]}  Bg7 {[%clk 0:02:57]} 4. g3 {[%clk 0:02:59]}  O-O {[%clk 0:02:58]} 5. Bg2 {[%clk 0:02:59]}  d6 {[%clk 0:02:58]} 6. O-O {[%clk 0:02:59]}  Nc6 {[%clk 0:02:59]} 7. Nc3 {[%clk 0:02:59]}  Bf5 {[%clk 0:03:00]} 8. d5 {[%clk 0:02:58]}  Na5 {[%clk 0:02:59]} 9. Nd4 {[%clk 0:02:58]}  Bd7 {[%clk 0:02:59]} 10. b3 {[%clk 0:02:49]}  c5 {[%clk 0:02:59]} 11. dxc6 {[%clk 0:02:48]}  Nxc6 {[%clk 0:03:00]} 12. Bb2 {[%clk 0:02:45]}  a6 {[%clk 0:02:53]} 13. Nd5 {[%clk 0:02:36]}  Nxd5 {[%clk 0:02:41]} 14. Nxc6 {[%clk 0:02:36]}  bxc6 {[%clk 0:02:27]} 15. Bxg7 {[%clk 0:02:35]}  Kxg7 {[%clk 0:02:28]} 16. cxd5 {[%clk 0:02:35]}  c5 {[%clk 0:02:29]} 17. Qd2 {[%clk 0:02:24]}  a5 {[%clk 0:02:18]} 18. Qc3+ {[%clk 0:02:07]}  f6 {[%clk 0:02:15]} 19. a3 {[%clk 0:01:59]}  Qb6 {[%clk 0:02:14]} 20. Rfb1 {[%clk 0:01:54]}  Rab8 {[%clk 0:02:12]} 21. Rb2 {[%clk 0:01:54]}  Rb7 {[%clk 0:02:11]} 22. Rab1 {[%clk 0:01:53]}  Rfb8 {[%clk 0:02:12]} 23. Be4 {[%clk 0:01:50]}  Be8 {[%clk 0:02:11]} 24. Bd3 {[%clk 0:01:49]}  Bb5 {[%clk 0:01:56]} 25. Bxb5 {[%clk 0:01:29]}  Qxb5 {[%clk 0:01:57]} 26. e4 {[%clk 0:01:29]}  Rb6 {[%clk 0:01:37]} 27. Kg2 {[%clk 0:01:15]}  R8b7 {[%clk 0:01:37]} 28. h4 {[%clk 0:01:14]}  Qa6 {[%clk 0:01:33]} 29. g4 {[%clk 0:01:01]}  Qa8 {[%clk 0:01:23]} 30. g5 {[%clk 0:00:53]}  Rb5 {[%clk 0:01:22]} 31. h5 {[%clk 0:00:34]}  Qc8 {[%clk 0:01:21]} 32. f3 {[%clk 0:00:32]}  gxh5 {[%clk 0:01:16]} 33. gxf6+ {[%clk 0:00:26]}  exf6 {[%clk 0:01:17]} 34. Rg1 {[%clk 0:00:26]}  a4 {[%clk 0:01:10]} 35. b4 {[%clk 0:00:20]}  Kf7 {[%clk 0:00:53]} 36. Kh2 {[%clk 0:00:18]}  Qe8 {[%clk 0:00:51]} 37. Qd2 {[%clk 0:00:11]}  Qe5+ {[%clk 0:00:48]} 38. Kh1 {[%clk 0:00:11]}  Re7 {[%clk 0:00:18]} 39. Qg2 {[%clk 0:00:08]}  Ke8 {[%clk 0:00:18]} 40. Qg8+ {[%clk 0:00:07]}  Kd7 {[%clk 0:00:18]} 41. Qa8 {[%clk 0:00:06]}  Qxb2 {[%clk 0:00:02]} 42. Qc6+ {[%clk 0:00:07]}  Kd8 {[%clk 0:00:01]} 43. Rg8+ {[%clk 0:00:07]} 1-0


[Site "https://www.chess.com"]

[Event "Titled Tuesday Blitz May 16 Late 2023"]
[White "Ramirez Vido, Robert Yorisan"]
[Black "Marek, Matyas"]
[WhiteFideId "3513823"]
[BlackFideId "335398"]
[WhiteElo "2371"]
[BlackElo "2279"]
[Result "0-1"]
[Round "01"]
[TimeControl "180+2"]
[Date "2023.05.16"]
[WhiteClock "0:00:00"]
[BlackClock "0:02:09"]

1. f4 {[%clk 0:02:57]}  Nf6 {[%clk 0:02:59]} 2. Nf3 {[%clk 0:02:56]}  g6 {[%clk 0:03:00]} 3. g3 {[%clk 0:02:55]}  Bg7 {[%clk 0:03:01]} 4. Bg2 {[%clk 0:02:56]}  O-O {[%clk 0:03:02]} 5. d3 {[%clk 0:02:57]}  d6 {[%clk 0:03:01]} 6. O-O {[%clk 0:02:57]}  Nbd7 {[%clk 0:03:02]} 7. e4 {[%clk 0:02:57]}  e5 {[%clk 0:03:02]} 8. Nc3 {[%clk 0:02:56]}  c6 {[%clk 0:03:03]} 9. f5 {[%clk 0:02:54]}  d5 {[%clk 0:02:52]} 10. exd5 {[%clk 0:02:50]}  cxd5 {[%clk 0:02:51]} 11. fxg6 {[%clk 0:02:48]}  hxg6 {[%clk 0:02:51]} 12. Kh1 {[%clk 0:02:47]}  d4 {[%clk 0:02:41]} 13. Ne4 {[%clk 0:02:41]}  Nxe4 {[%clk 0:02:41]} 14. dxe4 {[%clk 0:02:42]}  Nc5 {[%clk 0:02:41]} 15. Qe2 {[%clk 0:02:26]}  Bg4 {[%clk 0:02:40]} 16. h3 {[%clk 0:02:21]}  Bd7 {[%clk 0:02:40]} 17. Bd2 {[%clk 0:02:15]}  Rc8 {[%clk 0:02:39]} 18. Bb4 {[%clk 0:02:11]}  Qb6 {[%clk 0:02:39]} 19. Ba3 {[%clk 0:02:03]}  Bb5 {[%clk 0:02:38]} 20. Qf2 {[%clk 0:01:52]}  Nxe4 {[%clk 0:02:37]} 21. Qe1 {[%clk 0:01:44]}  Bxf1 {[%clk 0:02:30]} 22. Bxf1 {[%clk 0:01:34]}  Nd6 {[%clk 0:02:30]} 23. Bd3 {[%clk 0:00:24]}  Rfe8 {[%clk 0:02:24]} 24. Ng5 {[%clk 0:00:14]}  e4 {[%clk 0:02:10]} 25. Qf1 {[%clk 0:00:00]}  Nf5 {[%clk 0:02:09]} 0-1


[Site "https://www.chess.com"]

[Event "Titled Tuesday Blitz May 16 Late 2023"]
[White "benny_aizenberg"]
[Black "Kaganskiy, Gleb"]
[BlackFideId "4132025"]
[WhiteElo "2679"]
[BlackElo "2165"]
[Result "1-0"]
[Round "01"]
[TimeControl "180+2"]
[Date "2023.05.16"]
[WhiteClock "0:00:51"]
[BlackClock "0:00:00"]

1. f4 {[%clk 0:02:57]}  d5 {[%clk 0:02:57]} 2. Nf3 {[%clk 0:02:57]}  g6 {[%clk 0:02:54]} 3. g3 {[%clk 0:02:57]}  Bg7 {[%clk 0:02:52]} 4. Bg2 {[%clk 0:02:57]}  c5 {[%clk 0:02:51]} 5. O-O {[%clk 0:02:57]}  Nc6 {[%clk 0:02:50]} 6. d3 {[%clk 0:02:57]}  Nf6 {[%clk 0:02:46]} 7. c3 {[%clk 0:02:57]}  O-O {[%clk 0:02:45]} 8. Qc2 {[%clk 0:02:46]}  Qb6 {[%clk 0:02:43]} 9. Kh1 {[%clk 0:02:40]}  Rd8 {[%clk 0:02:43]} 10. e4 {[%clk 0:02:37]}  dxe4 {[%clk 0:02:38]} 11. dxe4 {[%clk 0:02:38]}  e5 {[%clk 0:02:36]} 12. f5 {[%clk 0:02:17]}  Qa6 {[%clk 0:02:06]} 13. Bg5 {[%clk 0:02:02]}  gxf5 {[%clk 0:01:43]} 14. Nh4 {[%clk 0:01:51]}  Qd3 {[%clk 0:01:02]} 15. Qxd3 {[%clk 0:01:48]}  Rxd3 {[%clk 0:01:02]} 16. Nxf5 {[%clk 0:01:48]}  Bxf5 {[%clk 0:00:55]} 17. exf5 {[%clk 0:01:48]}  Rad8 {[%clk 0:00:26]} 18. Na3 {[%clk 0:01:47]}  h6 {[%clk 0:00:24]} 19. Bxf6 {[%clk 0:01:46]}  Bxf6 {[%clk 0:00:24]} 20. Nc4 {[%clk 0:01:43]}  Ne7 {[%clk 0:00:08]} 21. Bxb7 {[%clk 0:01:40]}  Nd5 {[%clk 0:00:08]} 22. Rae1 {[%clk 0:01:26]}  Nb6 {[%clk 0:00:04]} 23. Nxe5 {[%clk 0:01:12]}  Bxe5 {[%clk 0:00:05]} 24. Rxe5 {[%clk 0:01:12]}  Rd2 {[%clk 0:00:06]} 25. b3 {[%clk 0:01:11]}  Rxa2 {[%clk 0:00:06]} 26. f6 {[%clk 0:01:11]}  Rb2 {[%clk 0:00:04]} 27. Rfe1 {[%clk 0:01:08]}  h5 {[%clk 0:00:03]} 28. Re8+ {[%clk 0:00:49]}  Rxe8 {[%clk 0:00:04]} 29. Rxe8+ {[%clk 0:00:50]}  Kh7 {[%clk 0:00:04]} 30. Be4+ {[%clk 0:00:50]}  Kh6 {[%clk 0:00:00]} 31. h4 {[%clk 0:00:51]} 1-0


[Site "https://www.chess.com"]

[Event "Titled Tuesday Blitz May 16 Late 2023"]
[White "Topalov, Aleksandar"]
[Black "Schekachikhin, Maksim"]
[WhiteFideId "925659"]
[BlackFideId "24177830"]
[WhiteElo "2151"]
[BlackElo "2272"]
[Result "0-1"]
[Round "01"]
[TimeControl "180+2"]
[Date "2023.05.16"]
[WhiteClock "0:00:00"]
[BlackClock "0:00:31"]

1. b3 {[%clk 0:03:00]}  d5 {[%clk 0:02:59]} 2. Bb2 {[%clk 0:03:00]}  Nf6 {[%clk 0:02:58]} 3. Nf3 {[%clk 0:02:59]}  Bf5 {[%clk 0:02:57]} 4. g3 {[%clk 0:02:58]}  e6 {[%clk 0:02:57]} 5. Bg2 {[%clk 0:02:58]}  h6 {[%clk 0:02:57]} 6. O-O {[%clk 0:02:57]}  Be7 {[%clk 0:02:57]} 7. d3 {[%clk 0:02:57]}  O-O {[%clk 0:02:58]} 8. Nbd2 {[%clk 0:02:57]}  Bh7 {[%clk 0:02:57]} 9. c4 {[%clk 0:02:54]}  c6 {[%clk 0:02:57]} 10. a3 {[%clk 0:02:50]}  a5 {[%clk 0:02:56]} 11. Ra2 {[%clk 0:02:49]}  Nbd7 {[%clk 0:02:53]} 12. Qa1 {[%clk 0:02:48]}  b5 {[%clk 0:02:53]} 13. cxb5 {[%clk 0:02:44]}  cxb5 {[%clk 0:02:53]} 14. Rc1 {[%clk 0:02:38]}  Qb6 {[%clk 0:02:52]} 15. Bd4 {[%clk 0:02:30]}  Qb7 {[%clk 0:02:52]} 16. Rac2 {[%clk 0:02:27]}  Rfc8 {[%clk 0:02:49]} 17. Ne5 {[%clk 0:01:59]}  Nxe5 {[%clk 0:02:47]} 18. Bxe5 {[%clk 0:01:59]}  Rxc2 {[%clk 0:02:46]} 19. Rxc2 {[%clk 0:02:00]}  Rc8 {[%clk 0:02:46]} 20. Rxc8+ {[%clk 0:01:51]}  Qxc8 {[%clk 0:02:47]} 21. Qb2 {[%clk 0:01:47]}  Ne8 {[%clk 0:02:35]} 22. a4 {[%clk 0:01:26]}  b4 {[%clk 0:02:30]} 23. Bd4 {[%clk 0:01:18]}  Bf6 {[%clk 0:02:28]} 24. Nf3 {[%clk 0:01:09]}  Bxd4 {[%clk 0:02:16]} 25. Qxd4 {[%clk 0:01:00]}  Qc7 {[%clk 0:02:02]} 26. e4 {[%clk 0:00:26]}  Nf6 {[%clk 0:01:58]} 27. Ne5 {[%clk 0:00:17]}  dxe4 {[%clk 0:01:36]} 28. Bxe4 {[%clk 0:00:16]}  Bxe4 {[%clk 0:01:06]} 29. dxe4 {[%clk 0:00:16]}  Qc1+ {[%clk 0:01:06]} 30. Kg2 {[%clk 0:00:15]}  Qb1 {[%clk 0:01:06]} 31. Nc4 {[%clk 0:00:11]}  Qxb3 {[%clk 0:01:01]} 32. Nxa5 {[%clk 0:00:07]}  Qxa4 {[%clk 0:01:01]} 33. Nc4 {[%clk 0:00:05]}  Qc6 {[%clk 0:00:58]} 34. f3 {[%clk 0:00:04]}  b3 {[%clk 0:00:56]} 35. Ne3 {[%clk 0:00:03]}  Qc1 {[%clk 0:00:45]} 36. Nc4 {[%clk 0:00:02]}  Qc2+ {[%clk 0:00:38]} 37. Kh3 {[%clk 0:00:02]}  e5 {[%clk 0:00:32]} 38. Qd8+ {[%clk 0:00:00]}  Kh7 {[%clk 0:00:31]} 0-1


[Site "https://www.chess.com"]

[Event "Titled Tuesday Blitz May 16 Late 2023"]
[White "Alex_Sahakyan2006"]
[Black "Shapiro, Daniel"]
[BlackFideId "2001780"]
[WhiteElo "2676"]
[BlackElo "2365"]
[Result "1-0"]
[Round "01"]
[TimeControl "180+2"]
[Date "2023.05.16"]
[WhiteClock "0:00:13"]
[BlackClock "0:00:09"]

1. d4 {[%clk 0:02:58]}  Nf6 {[%clk 0:02:59]} 2. Nf3 {[%clk 0:02:58]}  b6 {[%clk 0:02:57]} 3. c4 {[%clk 0:02:56]}  e6 {[%clk 0:02:55]} 4. g3 {[%clk 0:02:52]}  Ba6 {[%clk 0:02:54]} 5. Nbd2 {[%clk 0:02:47]}  d5 {[%clk 0:02:35]} 6. Bg2 {[%clk 0:02:37]}  Be7 {[%clk 0:02:26]} 7. O-O {[%clk 0:02:33]}  O-O {[%clk 0:02:26]} 8. Qc2 {[%clk 0:02:27]}  c6 {[%clk 0:02:21]} 9. b3 {[%clk 0:02:12]}  Nbd7 {[%clk 0:02:18]} 10. e4 {[%clk 0:02:09]}  Rc8 {[%clk 0:02:10]} 11. e5 {[%clk 0:02:06]}  Ne8 {[%clk 0:02:09]} 12. Rd1 {[%clk 0:01:52]}  Nc7 {[%clk 0:02:08]} 13. h4 {[%clk 0:01:28]}  h6 {[%clk 0:02:07]} 14. cxd5 {[%clk 0:01:22]}  Nxd5 {[%clk 0:01:58]} 15. Ne4 {[%clk 0:01:22]}  c5 {[%clk 0:01:54]} 16. Qd2 {[%clk 0:01:07]}  cxd4 {[%clk 0:01:49]} 17. Qxd4 {[%clk 0:01:07]}  Be2 {[%clk 0:01:26]} 18. Re1 {[%clk 0:01:04]}  Bxf3 {[%clk 0:01:26]} 19. Bxf3 {[%clk 0:01:04]}  Nc5 {[%clk 0:01:26]} 20. Nxc5 {[%clk 0:01:02]}  Rxc5 {[%clk 0:01:11]} 21. Qg4 {[%clk 0:00:56]}  h5 {[%clk 0:00:46]} 22. Qxh5 {[%clk 0:00:46]}  Nf6 {[%clk 0:00:46]} 23. exf6 {[%clk 0:00:43]}  Rxh5 {[%clk 0:00:45]} 24. fxe7 {[%clk 0:00:42]}  Qxe7 {[%clk 0:00:45]} 25. Bxh5 {[%clk 0:00:43]}  Qf6 {[%clk 0:00:46]} 26. Bg5 {[%clk 0:00:41]}  Qf5 {[%clk 0:00:45]} 27. Be2 {[%clk 0:00:37]}  Rc8 {[%clk 0:00:43]} 28. Rad1 {[%clk 0:00:29]}  f6 {[%clk 0:00:39]} 29. Bd3 {[%clk 0:00:27]}  Qh3 {[%clk 0:00:37]} 30. Bf1 {[%clk 0:00:23]}  Qf5 {[%clk 0:00:35]} 31. Be3 {[%clk 0:00:24]}  Rc7 {[%clk 0:00:29]} 32. Kh2 {[%clk 0:00:22]}  Kf7 {[%clk 0:00:28]} 33. Bh3 {[%clk 0:00:21]}  Qf3 {[%clk 0:00:22]} 34. Rc1 {[%clk 0:00:19]}  Re7 {[%clk 0:00:22]} 35. Bg2 {[%clk 0:00:18]}  Qf5 {[%clk 0:00:21]} 36. Red1 {[%clk 0:00:18]}  e5 {[%clk 0:00:20]} 37. Bd5+ {[%clk 0:00:18]}  Kg6 {[%clk 0:00:20]} 38. Rc4 {[%clk 0:00:16]}  e4 {[%clk 0:00:21]} 39. Rcd4 {[%clk 0:00:15]}  Re5 {[%clk 0:00:20]} 40. Bc4 {[%clk 0:00:14]}  b5 {[%clk 0:00:19]} 41. Bf1 {[%clk 0:00:14]}  Qf3 {[%clk 0:00:19]} 42. Bg2 {[%clk 0:00:15]}  Qe2 {[%clk 0:00:18]} 43. R4d2 {[%clk 0:00:14]}  Qg4 {[%clk 0:00:17]} 44. Re1 {[%clk 0:00:15]}  Qe6 {[%clk 0:00:17]} 45. Bf4 {[%clk 0:00:15]}  Rd5 {[%clk 0:00:16]} 46. Bxe4+ {[%clk 0:00:14]}  f5 {[%clk 0:00:15]} 47. Rxd5 {[%clk 0:00:13]}  fxe4 {[%clk 0:00:09]} 48. Rd6 {[%clk 0:00:13]} 1-0


[Site "https://www.chess.com"]